Workbook

Sheet Sheet1
B1: Sequences Vs. Series
B3: This graphing utility lets you investigate
B4: the terms of a sequence ak
B5: compared to the associated series
D6: y = f(x)
A10: Enter the sequence in terms of k: ak = | F10: 1/k^2
A13: What is the starting value for k:
C14: k0 = | D14: 1
K17: The first | M17: =xMax -> 24 | N17: terms of the sequence ak = | Q17: =F10 -> 1/k^2
L19: Select the maximum number of terms n (10 - 1000) = | R19: =O21 -> 24
A20: Click each item below for suggestions and investigations
B21: Item 1 | N21: 14 | O21: =N21+10 -> 24
B22: Item 2
B23: Item 3
B24: Item 4
A28: To access/download all the DIGMath Apps for Calculus
A29: Click this link: | C29: DIGMath for Calculus
A31: Created by: Sheldon P. Gordon
A32: Farmingdale State College
A33: Development of this module was supported by the
A34: NSF's Division of Undergraduate Education
A35: under grants DUE-0310123 and DUE-0442160.
J42: The sum of the first | M42: =xMax -> 24 | N42: terms of the sequence is | Q42: =LastSum -> 1.604123404

Sheet Sheet2
A1: k | B1: ak | C1: sum | D1: plot k's | E1: plot a's | F1: plot sum's | G1: xl= | H1: =IF(Sheet1!$O$21<Sheet1!D14+80*Sheet2!H5,Sheet1!D14,Sheet1!O21-80*Sheet2!H5) -> 24 | I1: =LOOKUP(Sheet1!O21,Sheet2!A3:A1002,Sheet2!B3:B1002)+LOOKUP(Sheet1!O21,Sheet2!A3:A1002,Sheet2!C3:C1002)*(H1-Sheet1!O21) -> 0.001736111111 | J1: "=yl
G2: xr= | H2: =IF(Sheet1!$O$21>Sheet1!D15-80*Sheet2!H5,Sheet1!D15,Sheet1!O21+80*Sheet2!H5) -> 0 | I2: =LOOKUP(Sheet1!O21,Sheet2!A3:A1003,Sheet2!B3:B1003)+LOOKUP(Sheet1!O21,Sheet2!A3:A1003,Sheet2!C3:C1003)*(H2-Sheet1!O21) -> -38.49722558 | J2: "=yR
A3: =Sheet1!D14 -> 1 | B3: =1/k^2 -> 1 | C3: =B3 -> 1 | D3: =A3 -> 1 | E3: =B3 -> 1 | F3: =C3 -> 1
A4: =A3+1 -> 2 | B4: 0.25 | C4: =C3+B4 -> 1.25 | D4: =D3+1 -> 2 | E4: =B4 -> 0.25 | F4: =F3+E4 -> 1.25 | H4: a last = | I4: =LOOKUP(xMax,A3:A1003,B3:B1003) -> 0.001736111111
A5: =A4+1 -> 3 | B5: 0.1111111111 | C5: =C4+B5 -> 1.361111111 | D5: =D4+1 -> 3 | E5: 0.1111111111 | F5: =F4+E5 -> 1.361111111
A6: 4 | B6: 0.0625 | C6: 1.423611111 | D6: 4 | E6: 0.0625 | F6: 1.423611111
A7: 5 | B7: 0.04 | C7: 1.463611111 | D7: 5 | E7: 0.04 | F7: 1.463611111 | H7: last sum= | I7: =LOOKUP(xMax,A3:A1003,C3:C1003) -> 1.604123404
A8: 6 | B8: 0.02777777778 | C8: 1.491388889 | D8: 6 | E8: 0.02777777778 | F8: 1.491388889
A9: 7 | B9: 0.02040816327 | C9: 1.511797052 | D9: 7 | E9: 0.02040816327 | F9: 1.511797052
A10: 8 | B10: 0.015625 | C10: 1.527422052 | D10: 8 | E10: 0.015625 | F10: 1.527422052
A11: 9 | B11: 0.01234567901 | C11: 1.539767731 | D11: 9 | E11: 0.01234567901 | F11: 1.539767731
A12: 10 | B12: 0.01 | C12: 1.549767731 | D12: 10 | E12: 0.01 | F12: 1.549767731
A13: 11 | B13: 0.00826446281 | C13: 1.558032194 | D13: =IF(A13<=xMax,A13,xMax) -> 11 | E13: =IF(A13<=xMax,B13,lastA) -> 0.00826446281 | F13: =IF(A13<=xMax,C13,LastSum) -> 1.558032194
A14: 12 | B14: 0.006944444444 | C14: 1.564976638 | D14: 12 | E14: 0.006944444444 | F14: 1.564976638
A15: 13 | B15: 0.005917159763 | C15: 1.570893798 | D15: 13 | E15: 0.005917159763 | F15: 1.570893798
A16: 14 | B16: 0.005102040816 | C16: 1.575995839 | D16: 14 | E16: 0.005102040816 | F16: 1.575995839
A17: 15 | B17: 0.004444444444 | C17: 1.580440283 | D17: 15 | E17: 0.004444444444 | F17: 1.580440283
A18: 16 | B18: 0.00390625 | C18: 1.584346533 | D18: 16 | E18: 0.00390625 | F18: 1.584346533
A19: 17 | B19: 0.003460207612 | C19: 1.587806741 | D19: 17 | E19: 0.003460207612 | F19: 1.587806741
A20: 18 | B20: 0.003086419753 | C20: 1.590893161 | D20: 18 | E20: 0.003086419753 | F20: 1.590893161
A21: 19 | B21: 0.002770083102 | C21: 1.593663244 | D21: 19 | E21: 0.002770083102 | F21: 1.593663244
A22: 20 | B22: 0.0025 | C22: 1.596163244 | D22: 20 | E22: 0.0025 | F22: 1.596163244
A23: 21 | B23: 0.002267573696 | C23: 1.598430818 | D23: 21 | E23: 0.002267573696 | F23: 1.598430818
A24: 22 | B24: 0.002066115702 | C24: 1.600496933 | D24: 22 | E24: 0.002066115702 | F24: 1.600496933
A25: 23 | B25: 0.001890359168 | C25: 1.602387292 | D25: 23 | E25: 0.001890359168 | F25: 1.602387292
A26: 24 | B26: 0.001736111111 | C26: 1.604123404 | D26: 24 | E26: 0.001736111111 | F26: 1.604123404
A27: 25 | B27: 0.0016 | C27: 1.605723404 | D27: 24 | E27: 0.001736111111 | F27: 1.604123404
A28: 26 | B28: 0.001479289941 | C28: 1.607202694 | D28: 24 | E28: 0.001736111111 | F28: 1.604123404
A29: 27 | B29: 0.001371742112 | C29: 1.608574436 | D29: 24 | E29: 0.001736111111 | F29: 1.604123404
A30: 28 | B30: 0.001275510204 | C30: 1.609849946 | D30: 24 | E30: 0.001736111111 | F30: 1.604123404
A31: 29 | B31: 0.001189060642 | C31: 1.611039006 | D31: 24 | E31: 0.001736111111 | F31: 1.604123404
A32: 30 | B32: 0.001111111111 | C32: 1.612150118 | D32: 24 | E32: 0.001736111111 | F32: 1.604123404
A33: 31 | B33: 0.001040582726 | C33: 1.6131907 | D33: 24 | E33: 0.001736111111 | F33: 1.604123404
A34: 32 | B34: 0.0009765625 | C34: 1.614167263 | D34: 24 | E34: 0.001736111111 | F34: 1.604123404
A35: 33 | B35: 0.0009182736455 | C35: 1.615085536 | D35: 24 | E35: 0.001736111111 | F35: 1.604123404
A36: 34 | B36: 0.0008650519031 | C36: 1.615950588 | D36: 24 | E36: 0.001736111111 | F36: 1.604123404
A37: 35 | B37: 0.0008163265306 | C37: 1.616766915 | D37: 24 | E37: 0.001736111111 | F37: 1.604123404
A38: 36 | B38: 0.0007716049383 | C38: 1.61753852 | D38: 24 | E38: 0.001736111111 | F38: 1.604123404
A39: 37 | B39: 0.0007304601899 | C39: 1.61826898 | D39: 24 | E39: 0.001736111111 | F39: 1.604123404
A40: 38 | B40: 0.0006925207756 | C40: 1.618961501 | D40: 24 | E40: 0.001736111111 | F40: 1.604123404
A41: 39 | B41: 0.0006574621959 | C41: 1.619618963 | D41: 24 | E41: 0.001736111111 | F41: 1.604123404
A42: 40 | B42: 0.000625 | C42: 1.620243963 | D42: 24 | E42: 0.001736111111 | F42: 1.604123404
A43: 41 | B43: 0.0005948839976 | C43: 1.620838847 | D43: 24 | E43: 0.001736111111 | F43: 1.604123404
A44: 42 | B44: 0.000566893424 | C44: 1.62140574 | D44: 24 | E44: 0.001736111111 | F44: 1.604123404
A45: 43 | B45: 0.0005408328826 | C45: 1.621946573 | D45: 24 | E45: 0.001736111111 | F45: 1.604123404
A46: 44 | B46: 0.0005165289256 | C46: 1.622463102 | D46: 24 | E46: 0.001736111111 | F46: 1.604123404
A47: 45 | B47: 0.0004938271605 | C47: 1.622956929 | D47: 24 | E47: 0.001736111111 | F47: 1.604123404
A48: 46 | B48: 0.0004725897921 | C48: 1.623429519 | D48: 24 | E48: 0.001736111111 | F48: 1.604123404
A49: 47 | B49: 0.0004526935265 | C49: 1.623882213 | D49: 24 | E49: 0.001736111111 | F49: 1.604123404
A50: 48 | B50: 0.0004340277778 | C50: 1.62431624 | D50: 24 | E50: 0.001736111111 | F50: 1.604123404
A51: 49 | B51: 0.0004164931279 | C51: 1.624732734 | D51: 24 | E51: 0.001736111111 | F51: 1.604123404
A52: 50 | B52: 0.0004 | C52: 1.625132734 | D52: 24 | E52: 0.001736111111 | F52: 1.604123404
A53: 51 | B53: 0.0003844675125 | C53: 1.625517201 | D53: 24 | E53: 0.001736111111 | F53: 1.604123404
A54: 52 | B54: 0.0003698224852 | C54: 1.625887024 | D54: 24 | E54: 0.001736111111 | F54: 1.604123404
A55: 53 | B55: 0.000355998576 | C55: 1.626243022 | D55: 24 | E55: 0.001736111111 | F55: 1.604123404
A56: 54 | B56: 0.0003429355281 | C56: 1.626585958 | D56: 24 | E56: 0.001736111111 | F56: 1.604123404
A57: 55 | B57: 0.0003305785124 | C57: 1.626916536 | D57: 24 | E57: 0.001736111111 | F57: 1.604123404
A58: 56 | B58: 0.000318877551 | C58: 1.627235414 | D58: 24 | E58: 0.001736111111 | F58: 1.604123404
A59: 57 | B59: 0.0003077870114 | C59: 1.627543201 | D59: 24 | E59: 0.001736111111 | F59: 1.604123404
A60: 58 | B60: 0.0002972651605 | C60: 1.627840466 | D60: 24 | E60: 0.001736111111 | F60: 1.604123404
A61: 59 | B61: 0.0002872737719 | C61: 1.62812774 | D61: 24 | E61: 0.001736111111 | F61: 1.604123404
A62: 60 | B62: 0.0002777777778 | C62: 1.628405518 | D62: 24 | E62: 0.001736111111 | F62: 1.604123404
A63: 61 | B63: 0.000268744961 | C63: 1.628674262 | D63: 24 | E63: 0.001736111111 | F63: 1.604123404
A64: 62 | B64: 0.0002601456816 | C64: 1.628934408 | D64: 24 | E64: 0.001736111111 | F64: 1.604123404
A65: 63 | B65: 0.0002519526329 | C65: 1.629186361 | D65: 24 | E65: 0.001736111111 | F65: 1.604123404
A66: 64 | B66: 0.000244140625 | C66: 1.629430501 | D66: 24 | E66: 0.001736111111 | F66: 1.604123404
A67: 65 | B67: =1/k^2 -> 0.0002366863905 | C67: 1.629667188 | D67: 24 | E67: 0.001736111111 | F67: 1.604123404
A68: 66 | B68: 0.0002295684114 | C68: 1.629896756 | D68: 24 | E68: 0.001736111111 | F68: 1.604123404
A69: =A68+1 -> 67 | B69: 0.0002227667632 | C69: =C68+B69 -> 1.630119523 | D69: 24 | E69: 0.001736111111 | F69: 1.604123404
A70: 68 | B70: 0.0002162629758 | C70: 1.630335786 | D70: 24 | E70: 0.001736111111 | F70: 1.604123404
A71: 69 | B71: 0.0002100399076 | C71: 1.630545826 | D71: 24 | E71: 0.001736111111 | F71: 1.604123404
A72: 70 | B72: 0.0002040816327 | C72: 1.630749907 | D72: 24 | E72: 0.001736111111 | F72: 1.604123404
A73: 71 | B73: 0.0001983733386 | C73: 1.630948281 | D73: 24 | E73: 0.001736111111 | F73: 1.604123404
A74: 72 | B74: 0.0001929012346 | C74: 1.631141182 | D74: 24 | E74: 0.001736111111 | F74: 1.604123404
A75: 73 | B75: 0.0001876524676 | C75: 1.631328835 | D75: 24 | E75: 0.001736111111 | F75: 1.604123404
A76: 74 | B76: 0.0001826150475 | C76: 1.63151145 | D76: 24 | E76: 0.001736111111 | F76: 1.604123404
A77: 75 | B77: 0.0001777777778 | C77: 1.631689227 | D77: =IF(A77<=xMax,A77,xMax) -> 24 | E77: =IF(A77<=xMax,B77,lastA) -> 0.001736111111 | F77: =IF(A77<=xMax,C77,LastSum) -> 1.604123404
A78: 76 | B78: 0.0001731301939 | C78: 1.631862358 | D78: 24 | E78: 0.001736111111 | F78: 1.604123404
A79: 77 | B79: 0.0001686625063 | C79: 1.63203102 | D79: 24 | E79: 0.001736111111 | F79: 1.604123404
A80: 78 | B80: 0.000164365549 | C80: 1.632195386 | D80: 24 | E80: 0.001736111111 | F80: 1.604123404
A81: 79 | B81: 0.0001602307323 | C81: 1.632355616 | D81: 24 | E81: 0.001736111111 | F81: 1.604123404
A82: 80 | B82: 0.00015625 | C82: 1.632511866 | D82: 24 | E82: 0.001736111111 | F82: 1.604123404
A83: 81 | B83: 0.0001524157903 | C83: 1.632664282 | D83: 24 | E83: 0.001736111111 | F83: 1.604123404
A84: 82 | B84: 0.0001487209994 | C84: 1.632813003 | D84: 24 | E84: 0.001736111111 | F84: 1.604123404
A85: 83 | B85: 0.000145158949 | C85: 1.632958162 | D85: 24 | E85: 0.001736111111 | F85: 1.604123404
A86: 84 | B86: 0.000141723356 | C86: 1.633099885 | D86: 24 | E86: 0.001736111111 | F86: 1.604123404
A87: 85 | B87: 0.0001384083045 | C87: 1.633238294 | D87: 24 | E87: 0.001736111111 | F87: 1.604123404
A88: 86 | B88: 0.0001352082207 | C88: 1.633373502 | D88: 24 | E88: 0.001736111111 | F88: 1.604123404
A89: 87 | B89: 0.0001321178491 | C89: 1.63350562 | D89: 24 | E89: 0.001736111111 | F89: 1.604123404
A90: 88 | B90: 0.0001291322314 | C90: 1.633634752 | D90: 24 | E90: 0.001736111111 | F90: 1.604123404
A91: 89 | B91: 0.000126246686 | C91: 1.633760999 | D91: 24 | E91: 0.001736111111 | F91: 1.604123404
A92: 90 | B92: 0.0001234567901 | C92: 1.633884456 | D92: 24 | E92: 0.001736111111 | F92: 1.604123404
A93: 91 | B93: 0.0001207583625 | C93: 1.634005214 | D93: 24 | E93: 0.001736111111 | F93: 1.604123404
A94: 92 | B94: 0.000118147448 | C94: 1.634123361 | D94: 24 | E94: 0.001736111111 | F94: 1.604123404
A95: 93 | B95: 0.0001156203029 | C95: 1.634238982 | D95: 24 | E95: 0.001736111111 | F95: 1.604123404
A96: 94 | B96: 0.0001131733816 | C96: 1.634352155 | D96: 24 | E96: 0.001736111111 | F96: 1.604123404
A97: 95 | B97: 0.0001108033241 | C97: 1.634462958 | D97: 24 | E97: 0.001736111111 | F97: 1.604123404
A98: 96 | B98: 0.0001085069444 | C98: 1.634571465 | D98: 24 | E98: 0.001736111111 | F98: 1.604123404
A99: 97 | B99: 0.0001062812201 | C99: 1.634677746 | D99: 24 | E99: 0.001736111111 | F99: 1.604123404
A100: 98 | B100: 0.000104123282 | C100: 1.63478187 | D100: 24 | E100: 0.001736111111 | F100: 1.604123404
A101: 99 | B101: 0.0001020304051 | C101: 1.6348839 | D101: 24 | E101: 0.001736111111 | F101: 1.604123404
A102: 100 | B102: 0.0001 | C102: 1.6349839 | D102: 24 | E102: 0.001736111111 | F102: 1.604123404
A103: 101 | B103: 9.802960494e-05 | C103: 1.63508193 | D103: 24 | E103: 0.001736111111 | F103: 1.604123404
A104: 102 | B104: 9.611687812e-05 | C104: 1.635178047 | D104: 24 | E104: 0.001736111111 | F104: 1.604123404
A105: 103 | B105: 9.425959091e-05 | C105: 1.635272306 | D105: 24 | E105: 0.001736111111 | F105: 1.604123404
A106: 104 | B106: 9.24556213e-05 | C106: 1.635364762 | D106: 24 | E106: 0.001736111111 | F106: 1.604123404
A107: 105 | B107: 9.070294785e-05 | C107: 1.635455465 | D107: 24 | E107: 0.001736111111 | F107: 1.604123404
A108: 106 | B108: 8.8999644e-05 | C108: 1.635544464 | D108: 24 | E108: 0.001736111111 | F108: 1.604123404
A109: 107 | B109: 8.734387283e-05 | C109: 1.635631808 | D109: 24 | E109: 0.001736111111 | F109: 1.604123404
A110: 108 | B110: 8.573388203e-05 | C110: 1.635717542 | D110: 24 | E110: 0.001736111111 | F110: 1.604123404
A111: 109 | B111: 8.416799933e-05 | C111: 1.63580171 | D111: 24 | E111: 0.001736111111 | F111: 1.604123404
A112: 110 | B112: 8.26446281e-05 | C112: 1.635884355 | D112: 24 | E112: 0.001736111111 | F112: 1.604123404
A113: 111 | B113: 8.116224332e-05 | C113: 1.635965517 | D113: 24 | E113: 0.001736111111 | F113: 1.604123404
A114: 112 | B114: 7.971938776e-05 | C114: 1.636045236 | D114: 24 | E114: 0.001736111111 | F114: 1.604123404
A115: 113 | B115: 7.831466834e-05 | C115: 1.636123551 | D115: 24 | E115: 0.001736111111 | F115: 1.604123404
A116: 114 | B116: 7.694675285e-05 | C116: 1.636200498 | D116: 24 | E116: 0.001736111111 | F116: 1.604123404
A117: 115 | B117: 7.561436673e-05 | C117: 1.636276112 | D117: 24 | E117: 0.001736111111 | F117: 1.604123404
A118: 116 | B118: 7.431629013e-05 | C118: 1.636350429 | D118: 24 | E118: 0.001736111111 | F118: 1.604123404
A119: 117 | B119: 7.30513551e-05 | C119: 1.63642348 | D119: 24 | E119: 0.001736111111 | F119: 1.604123404
A120: 118 | B120: 7.181844298e-05 | C120: 1.636495298 | D120: 24 | E120: 0.001736111111 | F120: 1.604123404
A121: 119 | B121: 7.061648189e-05 | C121: 1.636565915 | D121: 24 | E121: 0.001736111111 | F121: 1.604123404
A122: 120 | B122: 6.944444444e-05 | C122: 1.636635359 | D122: 24 | E122: 0.001736111111 | F122: 1.604123404
A123: 121 | B123: 6.830134554e-05 | C123: 1.636703661 | D123: 24 | E123: 0.001736111111 | F123: 1.604123404
A124: 122 | B124: 6.718624026e-05 | C124: 1.636770847 | D124: 24 | E124: 0.001736111111 | F124: 1.604123404
A125: 123 | B125: 6.609822196e-05 | C125: 1.636836945 | D125: 24 | E125: 0.001736111111 | F125: 1.604123404
A126: 124 | B126: 6.50364204e-05 | C126: 1.636901982 | D126: 24 | E126: 0.001736111111 | F126: 1.604123404
A127: 125 | B127: 6.4e-05 | C127: 1.636965982 | D127: 24 | E127: 0.001736111111 | F127: 1.604123404
A128: 126 | B128: 6.298815823e-05 | C128: 1.63702897 | D128: 24 | E128: 0.001736111111 | F128: 1.604123404
A129: 127 | B129: 6.2000124e-05 | C129: 1.63709097 | D129: 24 | E129: 0.001736111111 | F129: 1.604123404
A130: 128 | B130: 6.103515625e-05 | C130: 1.637152005 | D130: 24 | E130: 0.001736111111 | F130: 1.604123404
A131: 129 | B131: =1/k^2 -> 6.009254252e-05 | C131: 1.637212097 | D131: 24 | E131: 0.001736111111 | F131: 1.604123404
A132: 130 | B132: 5.917159763e-05 | C132: 1.637271269 | D132: 24 | E132: 0.001736111111 | F132: 1.604123404
A133: =A132+1 -> 131 | B133: 5.827166249e-05 | C133: =C132+B133 -> 1.637329541 | D133: 24 | E133: 0.001736111111 | F133: 1.604123404
A134: 132 | B134: 5.739210285e-05 | C134: 1.637386933 | D134: 24 | E134: 0.001736111111 | F134: 1.604123404
A135: 133 | B135: 5.653230821e-05 | C135: 1.637443465 | D135: 24 | E135: 0.001736111111 | F135: 1.604123404
A136: 134 | B136: 5.56916908e-05 | C136: 1.637499157 | D136: 24 | E136: 0.001736111111 | F136: 1.604123404
A137: 135 | B137: 5.48696845e-05 | C137: 1.637554027 | D137: 24 | E137: 0.001736111111 | F137: 1.604123404
A138: 136 | B138: 5.406574394e-05 | C138: 1.637608092 | D138: 24 | E138: 0.001736111111 | F138: 1.604123404
A139: 137 | B139: 5.32793436e-05 | C139: 1.637661372 | D139: 24 | E139: 0.001736111111 | F139: 1.604123404
A140: 138 | B140: 5.25099769e-05 | C140: 1.637713882 | D140: 24 | E140: 0.001736111111 | F140: 1.604123404
A141: 139 | B141: 5.175715543e-05 | C141: 1.637765639 | D141: =IF(A141<=xMax,A141,xMax) -> 24 | E141: =IF(A141<=xMax,B141,lastA) -> 0.001736111111 | F141: =IF(A141<=xMax,C141,LastSum) -> 1.604123404
A142: 140 | B142: 5.102040816e-05 | C142: 1.637816659 | D142: 24 | E142: 0.001736111111 | F142: 1.604123404
A143: 141 | B143: 5.029928072e-05 | C143: 1.637866958 | D143: 24 | E143: 0.001736111111 | F143: 1.604123404
A144: 142 | B144: 4.959333466e-05 | C144: 1.637916552 | D144: 24 | E144: 0.001736111111 | F144: 1.604123404
A145: 143 | B145: 4.89021468e-05 | C145: 1.637965454 | D145: 24 | E145: 0.001736111111 | F145: 1.604123404
A146: 144 | B146: 4.822530864e-05 | C146: 1.638013679 | D146: 24 | E146: 0.001736111111 | F146: 1.604123404
A147: 145 | B147: 4.756242568e-05 | C147: 1.638061242 | D147: 24 | E147: 0.001736111111 | F147: 1.604123404
A148: 146 | B148: 4.691311691e-05 | C148: 1.638108155 | D148: 24 | E148: 0.001736111111 | F148: 1.604123404
A149: 147 | B149: 4.627701421e-05 | C149: 1.638154432 | D149: 24 | E149: 0.001736111111 | F149: 1.604123404
A150: 148 | B150: 4.565376187e-05 | C150: 1.638200086 | D150: 24 | E150: 0.001736111111 | F150: 1.604123404
A151: 149 | B151: 4.504301608e-05 | C151: 1.638245129 | D151: 24 | E151: 0.001736111111 | F151: 1.604123404
A152: 150 | B152: 4.444444444e-05 | C152: 1.638289573 | D152: 24 | E152: 0.001736111111 | F152: 1.604123404
A153: 151 | B153: 4.385772554e-05 | C153: 1.638333431 | D153: 24 | E153: 0.001736111111 | F153: 1.604123404
A154: 152 | B154: 4.328254848e-05 | C154: 1.638376713 | D154: 24 | E154: 0.001736111111 | F154: 1.604123404
A155: 153 | B155: 4.27186125e-05 | C155: 1.638419432 | D155: 24 | E155: 0.001736111111 | F155: 1.604123404
A156: 154 | B156: 4.216562658e-05 | C156: 1.638461598 | D156: 24 | E156: 0.001736111111 | F156: 1.604123404
A157: 155 | B157: 4.162330905e-05 | C157: 1.638503221 | D157: 24 | E157: 0.001736111111 | F157: 1.604123404
A158: 156 | B158: 4.109138725e-05 | C158: 1.638544312 | D158: 24 | E158: 0.001736111111 | F158: 1.604123404
A159: 157 | B159: 4.056959714e-05 | C159: 1.638584882 | D159: 24 | E159: 0.001736111111 | F159: 1.604123404
A160: 158 | B160: 4.005768306e-05 | C160: 1.63862494 | D160: 24 | E160: 0.001736111111 | F160: 1.604123404
A161: 159 | B161: 3.955539733e-05 | C161: 1.638664495 | D161: 24 | E161: 0.001736111111 | F161: 1.604123404
A162: 160 | B162: 3.90625e-05 | C162: 1.638703557 | D162: 24 | E162: 0.001736111111 | F162: 1.604123404
A163: 161 | B163: 3.857875854e-05 | C163: 1.638742136 | D163: 24 | E163: 0.001736111111 | F163: 1.604123404
A164: 162 | B164: 3.810394757e-05 | C164: 1.63878024 | D164: 24 | E164: 0.001736111111 | F164: 1.604123404
A165: 163 | B165: 3.763784862e-05 | C165: 1.638817878 | D165: 24 | E165: 0.001736111111 | F165: 1.604123404
A166: 164 | B166: 3.718024985e-05 | C166: 1.638855058 | D166: 24 | E166: 0.001736111111 | F166: 1.604123404
A167: 165 | B167: 3.673094582e-05 | C167: 1.638891789 | D167: 24 | E167: 0.001736111111 | F167: 1.604123404
A168: 166 | B168: 3.628973726e-05 | C168: 1.638928079 | D168: 24 | E168: 0.001736111111 | F168: 1.604123404
A169: 167 | B169: 3.585643085e-05 | C169: 1.638963935 | D169: 24 | E169: 0.001736111111 | F169: 1.604123404
A170: 168 | B170: 3.5430839e-05 | C170: 1.638999366 | D170: 24 | E170: 0.001736111111 | F170: 1.604123404
A171: 169 | B171: 3.501277966e-05 | C171: 1.639034379 | D171: 24 | E171: 0.001736111111 | F171: 1.604123404
A172: 170 | B172: 3.460207612e-05 | C172: 1.639068981 | D172: 24 | E172: 0.001736111111 | F172: 1.604123404
A173: 171 | B173: 3.419855682e-05 | C173: 1.63910318 | D173: 24 | E173: 0.001736111111 | F173: 1.604123404
A174: 172 | B174: 3.380205516e-05 | C174: 1.639136982 | D174: 24 | E174: 0.001736111111 | F174: 1.604123404
A175: 173 | B175: 3.341240937e-05 | C175: 1.639170394 | D175: 24 | E175: 0.001736111111 | F175: 1.604123404
A176: 174 | B176: 3.302946228e-05 | C176: 1.639203424 | D176: 24 | E176: 0.001736111111 | F176: 1.604123404
A177: 175 | B177: 3.265306122e-05 | C177: 1.639236077 | D177: 24 | E177: 0.001736111111 | F177: 1.604123404
A178: 176 | B178: 3.228305785e-05 | C178: 1.63926836 | D178: 24 | E178: 0.001736111111 | F178: 1.604123404
A179: 177 | B179: 3.191930799e-05 | C179: 1.639300279 | D179: 24 | E179: 0.001736111111 | F179: 1.604123404
A180: 178 | B180: 3.156167151e-05 | C180: 1.639331841 | D180: 24 | E180: 0.001736111111 | F180: 1.604123404
A181: 179 | B181: 3.121001217e-05 | C181: 1.639363051 | D181: 24 | E181: 0.001736111111 | F181: 1.604123404
A182: 180 | B182: 3.086419753e-05 | C182: 1.639393915 | D182: 24 | E182: 0.001736111111 | F182: 1.604123404
A183: 181 | B183: 3.052409878e-05 | C183: 1.639424439 | D183: 24 | E183: 0.001736111111 | F183: 1.604123404
A184: 182 | B184: 3.018959063e-05 | C184: 1.639454629 | D184: 24 | E184: 0.001736111111 | F184: 1.604123404
A185: 183 | B185: 2.986055123e-05 | C185: 1.639484489 | D185: 24 | E185: 0.001736111111 | F185: 1.604123404
A186: 184 | B186: 2.9536862e-05 | C186: 1.639514026 | D186: 24 | E186: 0.001736111111 | F186: 1.604123404
A187: 185 | B187: 2.92184076e-05 | C187: 1.639543244 | D187: 24 | E187: 0.001736111111 | F187: 1.604123404
A188: 186 | B188: 2.890507573e-05 | C188: 1.639572149 | D188: 24 | E188: 0.001736111111 | F188: 1.604123404
A189: 187 | B189: 2.859675713e-05 | C189: 1.639600746 | D189: 24 | E189: 0.001736111111 | F189: 1.604123404
A190: 188 | B190: 2.829334541e-05 | C190: 1.63962904 | D190: 24 | E190: 0.001736111111 | F190: 1.604123404
A191: 189 | B191: 2.799473699e-05 | C191: 1.639657034 | D191: 24 | E191: 0.001736111111 | F191: 1.604123404
A192: 190 | B192: 2.770083102e-05 | C192: 1.639684735 | D192: 24 | E192: 0.001736111111 | F192: 1.604123404
A193: 191 | B193: 2.741152929e-05 | C193: 1.639712147 | D193: 24 | E193: 0.001736111111 | F193: 1.604123404
A194: 192 | B194: 2.712673611e-05 | C194: 1.639739273 | D194: 24 | E194: 0.001736111111 | F194: 1.604123404
A195: 193 | B195: =1/k^2 -> 2.684635829e-05 | C195: 1.63976612 | D195: 24 | E195: 0.001736111111 | F195: 1.604123404
A196: 194 | B196: 2.657030503e-05 | C196: 1.63979269 | D196: 24 | E196: 0.001736111111 | F196: 1.604123404
A197: =A196+1 -> 195 | B197: 2.629848784e-05 | C197: =C196+B197 -> 1.639818988 | D197: 24 | E197: 0.001736111111 | F197: 1.604123404
A198: 196 | B198: 2.603082049e-05 | C198: 1.639845019 | D198: 24 | E198: 0.001736111111 | F198: 1.604123404
A199: 197 | B199: 2.576721894e-05 | C199: 1.639870787 | D199: 24 | E199: 0.001736111111 | F199: 1.604123404
A200: 198 | B200: 2.550760127e-05 | C200: 1.639896294 | D200: 24 | E200: 0.001736111111 | F200: 1.604123404
... 802 more rows

Sheet Sheet3
A1: =xMin -> 1 | B1: =9 -> 9
A2: =A1+dx -> 1 | B2: =9 -> 9
A3: 1 | B3: =9 -> 9
A4: 1 | B4: =9 -> 9
A5: 1 | B5: =9 -> 9
A6: 1 | B6: =9 -> 9
A7: 1 | B7: =9 -> 9
A8: 1 | B8: =9 -> 9
A9: 1 | B9: =9 -> 9
A10: 1 | B10: =9 -> 9
A11: 1 | B11: =9 -> 9
A12: 1 | B12: =9 -> 9
A13: 1 | B13: =9 -> 9
A14: 1 | B14: =9 -> 9
A15: 1 | B15: =9 -> 9
A16: 1 | B16: =9 -> 9
A17: 1 | B17: =9 -> 9
A18: 1 | B18: =9 -> 9
A19: 1 | B19: =9 -> 9
A20: 1 | B20: =9 -> 9
A21: 1 | B21: =9 -> 9
A22: 1 | B22: =9 -> 9
A23: 1 | B23: =9 -> 9
A24: 1 | B24: =9 -> 9
A25: 1 | B25: =9 -> 9
A26: 1 | B26: =9 -> 9
A27: 1 | B27: =9 -> 9
A28: 1 | B28: =9 -> 9
A29: 1 | B29: =9 -> 9
A30: 1 | B30: =9 -> 9
A31: 1 | B31: =9 -> 9
A32: 1 | B32: =9 -> 9
A33: 1 | B33: =9 -> 9
A34: 1 | B34: =9 -> 9
A35: 1 | B35: =9 -> 9
A36: 1 | B36: =9 -> 9
A37: 1 | B37: =9 -> 9
A38: 1 | B38: =9 -> 9
A39: 1 | B39: =9 -> 9
A40: 1 | B40: =9 -> 9
A41: 1 | B41: =9 -> 9
A42: 1 | B42: =9 -> 9
A43: 1 | B43: =9 -> 9
A44: 1 | B44: =9 -> 9
A45: 1 | B45: =9 -> 9
A46: 1 | B46: =9 -> 9
A47: 1 | B47: =9 -> 9
A48: 1 | B48: =9 -> 9
A49: 1 | B49: =9 -> 9
A50: 1 | B50: =9 -> 9
A51: 1 | B51: =9 -> 9
A52: 1 | B52: =9 -> 9
A53: 1 | B53: =9 -> 9
A54: 1 | B54: =9 -> 9
A55: 1 | B55: =9 -> 9
A56: 1 | B56: =9 -> 9
A57: 1 | B57: =9 -> 9
A58: 1 | B58: =9 -> 9
A59: 1 | B59: =9 -> 9
A60: 1 | B60: =9 -> 9
A61: 1 | B61: =9 -> 9
A62: 1 | B62: =9 -> 9
A63: 1 | B63: =9 -> 9
A64: 1 | B64: =9 -> 9
A65: 1 | B65: =9 -> 9
A66: =A65+dx -> 1 | B66: =9 -> 9
A67: 1 | B67: =9 -> 9
A68: 1 | B68: =9 -> 9
A69: 1 | B69: =9 -> 9
A70: 1 | B70: =9 -> 9
A71: 1 | B71: =9 -> 9
A72: 1 | B72: =9 -> 9
A73: 1 | B73: =9 -> 9
A74: 1 | B74: =9 -> 9
A75: 1 | B75: =9 -> 9
A76: 1 | B76: =9 -> 9
A77: 1 | B77: =9 -> 9
A78: 1 | B78: =9 -> 9
A79: 1 | B79: =9 -> 9
A80: 1 | B80: =9 -> 9
A81: 1 | B81: =9 -> 9
A82: 1 | B82: =9 -> 9
A83: 1 | B83: =9 -> 9
A84: 1 | B84: =9 -> 9
A85: 1 | B85: =9 -> 9
A86: 1 | B86: =9 -> 9
A87: 1 | B87: =9 -> 9
A88: 1 | B88: =9 -> 9
A89: 1 | B89: =9 -> 9
A90: 1 | B90: =9 -> 9
A91: 1 | B91: =9 -> 9
A92: 1 | B92: =9 -> 9
A93: 1 | B93: =9 -> 9
A94: 1 | B94: =9 -> 9
A95: 1 | B95: =9 -> 9
A96: 1 | B96: =9 -> 9
A97: 1 | B97: =9 -> 9
A98: 1 | B98: =9 -> 9
A99: 1 | B99: =9 -> 9
A100: 1 | B100: =9 -> 9
A101: 1 | B101: =9 -> 9
A102: 1 | B102: =9 -> 9
A103: 1 | B103: =9 -> 9
A104: 1 | B104: =9 -> 9
A105: 1 | B105: =9 -> 9
A106: 1 | B106: =9 -> 9
A107: 1 | B107: =9 -> 9
A108: 1 | B108: =9 -> 9
A109: 1 | B109: =9 -> 9
A110: 1 | B110: =9 -> 9
A111: 1 | B111: =9 -> 9
A112: 1 | B112: =9 -> 9
A113: 1 | B113: =9 -> 9
A114: 1 | B114: =9 -> 9
A115: 1 | B115: =9 -> 9
A116: 1 | B116: =9 -> 9
A117: 1 | B117: =9 -> 9
A118: 1 | B118: =9 -> 9
A119: 1 | B119: =9 -> 9
A120: 1 | B120: =9 -> 9
A121: 1 | B121: =9 -> 9
A122: 1 | B122: =9 -> 9
A123: 1 | B123: =9 -> 9
A124: 1 | B124: =9 -> 9
A125: 1 | B125: =9 -> 9
A126: 1 | B126: =9 -> 9
A127: 1 | B127: =9 -> 9
A128: 1 | B128: =9 -> 9
A129: 1 | B129: =9 -> 9
A130: =A129+dx -> 1 | B130: =9 -> 9
A131: 1 | B131: =9 -> 9
A132: 1 | B132: =9 -> 9
A133: 1 | B133: =9 -> 9
A134: 1 | B134: =9 -> 9
A135: 1 | B135: =9 -> 9
A136: 1 | B136: =9 -> 9
A137: 1 | B137: =9 -> 9
A138: 1 | B138: =9 -> 9
A139: 1 | B139: =9 -> 9
A140: 1 | B140: =9 -> 9
A141: 1 | B141: =9 -> 9
A142: 1 | B142: =9 -> 9
A143: 1 | B143: =9 -> 9
A144: 1 | B144: =9 -> 9
A145: 1 | B145: =9 -> 9
A146: 1 | B146: =9 -> 9
A147: 1 | B147: =9 -> 9
A148: 1 | B148: =9 -> 9
A149: 1 | B149: =9 -> 9
A150: 1 | B150: =9 -> 9
A151: 1 | B151: =9 -> 9
A152: 1 | B152: =9 -> 9
A153: 1 | B153: =9 -> 9
A154: 1 | B154: =9 -> 9
A155: 1 | B155: =9 -> 9
A156: 1 | B156: =9 -> 9
A157: 1 | B157: =9 -> 9
A158: 1 | B158: =9 -> 9
A159: 1 | B159: =9 -> 9
A160: 1 | B160: =9 -> 9
A161: 1 | B161: =9 -> 9
A162: 1 | B162: =9 -> 9
A163: 1 | B163: =9 -> 9
A164: 1 | B164: =9 -> 9
A165: 1 | B165: =9 -> 9
A166: 1 | B166: =9 -> 9
A167: 1 | B167: =9 -> 9
A168: 1 | B168: =9 -> 9
A169: 1 | B169: =9 -> 9
A170: 1 | B170: =9 -> 9
A171: 1 | B171: =9 -> 9
A172: 1 | B172: =9 -> 9
A173: 1 | B173: =9 -> 9
A174: 1 | B174: =9 -> 9
A175: 1 | B175: =9 -> 9
A176: 1 | B176: =9 -> 9
A177: 1 | B177: =9 -> 9
A178: 1 | B178: =9 -> 9
A179: 1 | B179: =9 -> 9
A180: 1 | B180: =9 -> 9
A181: 1 | B181: =9 -> 9
A182: 1 | B182: =9 -> 9
A183: 1 | B183: =9 -> 9
A184: 1 | B184: =9 -> 9
A185: 1 | B185: =9 -> 9
A186: 1 | B186: =9 -> 9
A187: 1 | B187: =9 -> 9
A188: 1 | B188: =9 -> 9
A189: 1 | B189: =9 -> 9
A190: 1 | B190: =9 -> 9
A191: 1 | B191: =9 -> 9
A192: 1 | B192: =9 -> 9
A193: 1 | B193: =9 -> 9
A194: =A193+dx -> 1 | B194: =9 -> 9
A195: 1 | B195: =9 -> 9
A196: 1 | B196: =9 -> 9
A197: 1 | B197: =9 -> 9
A198: 1 | B198: =9 -> 9
A199: 1 | B199: =9 -> 9
A200: 1 | B200: =9 -> 9
... 803 more rows

Sheet Defining Function
A1: Defining a Function in Excel
A3: Computers have very specific rules you must follow when defining a function. If you don't, the program will either not work at all or will work incorrectly.
A5: 1. The Variable used should be the one named in the instruction, usually x, though sometimes y, t, Q (for an angle theta),
A6: or even x and y (for a function of two variables).
A8: 2. Order of Operations: There five arithmetic operations, addition (+), subtraction (-), multiplication (*), division (/), and exponentiation or power (^). When computers see any of these operation symbols, they perform the indicated steps in a very particular order. First, the power is done. Second, products and quotients of adjacent terms is done. Third, and last, sums and differences of adjacent terms are done. So, in 10*x^3 + 5*x – 7, say with x = 2, the first pass only calculates 2^3 and ignores the multiplications and the sums and differences to calculate 2^3 = 8. The second pass looks at 10*8 + 5*2 – 7 and only does the multiplications, so it produces 80 + 10 - 7. The third pass looks at the +’s and –‘s to produce 80 + 10 – 7 = 83.
A10: 3. Parentheses If you need an operation involving more than two adjacent terms, as in Ö4^3 + 6^2, the computer would take the square root of 4 to produce 2^3 + 6^2; it would then cube the 2 and square the 6 to produce 8 + 36; and finally it would add the 8 and the 36 to get 44. If you actually wanted the square root of the entire expression, you would need to use parentheses, as in Ö(4^3 + 6^2) to tell the computer to do all the operations inside the parentheses before taking the square root. Therefore, it would calculate (4^3 + 6^2) = 64 + 36 = 100 and then take the square root of Ö100 = 10.
A12: 4. Built-In Functions Computer programs have built-in functions for most common algebraic functions. In Excel, the square root function is denoted by SQRT(…), so SQRT(100) = 10. Alternatively, you could enter it as 100^.5 or 100^(1/2); notice that parentheses are needed to have the ½ done first. The common trig functions are SIN (…), COS (…), and TAN (…), where the arguments are automatically interpreted as being in radians, not degrees. The logarithm to the base 10 is represented by LOG (…) and the logarithm with the base e, known as the natural logarithm, is LN (…). The corresponding exponential function with base e is EXP (x). If x is the variable, then each of these would be SQRT (x), SIN (x), COS (x), TAN (x), LOG (x) (for log with base 10 ), LN (x) (for log with base e ), and EXP (x).

Sheet Sheet4
